bitfinex-derivatives/quotes_ETHF0:USTF0_20250217
["timestamp","ask_amount","ask_price","bid_price","bid_amount"]
[1739825687069,0.64819094,2742.0,2741.8,0.00547435]
[1739825687070,0.06476094,2742.0,2741.8,0.00547435]
[1739825687360,5.87185,2741.9,2741.8,0.00547435]
[1739825687567,5.93661094,2741.9,2741.8,0.00547435]
[1739825689866,9.14441094,2741.9,2741.8,0.00547435]
[1739825690071,9.14442176,2741.9,2741.8,0.00547435]
[1739825692968,5.93662176,2741.9,2741.8,0.00547435]
[1739825693165,5.9366215,2741.9,2741.8,0.00547435]
[1739825693371,10.4796215,2741.9,2741.8,0.00547435]
[1739825694869,10.47962151,2741.9,2741.8,0.00547435]
[1739825695658,16.53462151,2741.9,2741.8,0.00547435]
[1739825696464,0.58358,2741.3,2741.2,5.0198]
[1739825696771,3.12336904,2741.3,2740.9,3.2078]
[1739825697066,3.05859,2741.3,2741.0,5.064]
[1739825697762,0.5836,2741.2,2741.0,5.064]
[1739825697959,2.475,2741.3,2741.0,5.064]
[1739825698169,3.05858,2741.3,2741.0,5.064]
[1739825698367,2.475,2741.3,2741.0,5.064]
[1739825698563,3.0586,2741.3,2741.0,5.064]
[1739825698763,2.475,2741.3,2741.0,5.064]
[1739825699064,0.5836,2741.2,2741.0,5.064]
[1739825699261,6.055,2741.1,2740.9,0.00547435]
[1739825699565,0.64843119,2741.0,2740.9,0.00547435]
[1739825699870,0.64843463,2741.0,2740.9,0.00547435]
[1739825700272,6.70343463,2741.0,2740.9,0.00547435]
[1739825700967,3.77031924,2740.7,2740.1,5.2784]
[1739825701171,3.12353463,2740.6,2740.2,4.2064]
[1739825701371,0.06479463,2740.5,2740.2,4.2064]
[1739825701770,2.475,2740.4,2740.2,4.2064]
[1739825701967,2.475,2740.4,2740.2,9.5048]
[1739825702173,0.18677703,2741.0,2740.3,3.2078]
[1739825702365,2.53979204,2740.9,2740.7,3.2078]
[1739825702572,2.475,2740.9,2740.8,9.4352]
[1739825703968,2.475,2740.9,2740.8,5.2288]
[1739825704175,2.53978994,2740.9,2740.8,5.2288]
[1739825704677,2.53978959,2740.9,2740.3,7.4251]
[1739825704874,2.475,2740.9,2740.4,5.2288]
[1739825705075,7.6336,2740.9,2740.4,5.2288]
[1739825705572,2.475,2740.9,2740.6,3.2078]
[1739825706476,3.05866,2740.9,2740.4,5.2288]
[1739825706675,0.06479117,2740.8,2740.4,5.2288]
[1739825706877,4.31029117,2740.8,2740.4,5.2288]
[1739825707174,4.2455,2740.8,2740.4,5.2288]
[1739825707374,4.2455,2740.8,2740.6,3.2078]
[1739825709377,4.82919,2740.8,2740.6,3.2078]
[1739825709574,4.2455,2740.8,2740.6,3.2078]
[1739825709969,4.8292,2740.8,2740.4,5.2288]
[1739825710179,0.0647939,2740.7,2740.4,5.2288]
[1739825710378,6.1207039,2740.7,2740.4,5.2288]
[1739825710672,9.24251924,2740.7,2740.2,3.2078]
[1739825710875,0.06479667,2740.6,2740.2,3.2078]
[1739825711076,2.475,2740.5,2740.2,3.2078]
[1739825711281,4.4189019,2740.4,2740.2,3.2078]
[1739825711480,4.35409924,2740.4,2740.2,3.2078]
[1739825711778,4.35408924,2740.4,2740.2,3.2078]
[1739825712176,3.77031924,2740.4,2740.2,3.2078]
[1739825712991,2.475,2740.5,2740.2,3.2078]
[1739825713374,3.05876,2740.5,2740.2,3.2078]
[1739825713568,2.475,2740.5,2740.2,3.2078]
[1739825715379,2.475,2740.5,2740.1,5.56067435]
[1739825715579,3.05875,2740.5,2740.1,5.56067435]
[1739825715879,2.475,2740.5,2740.1,5.56067435]
[1739825716178,3.05876,2740.5,2740.1,5.56067435]
[1739825716678,2.475,2740.5,2740.1,5.56067435]
[1739825718672,0.58377,2740.4,2740.1,5.56067435]
[1739825718868,3.05877,2740.5,2740.1,5.56067435]
[1739825719181,0.58377,2740.4,2740.1,5.56067435]
[1739825719577,0.58378,2740.4,2740.1,5.56067435]
[1739825719973,0.58379,2740.4,2740.1,5.56067435]
[1739825720282,4.65,2740.3,2740.1,5.56067435]
[1739825721969,4.65,2740.3,2740.2,3.2078]
[1739825722169,4.65,2740.3,2740.1,5.56067435]
[1739825723778,2.475,2740.5,2740.2,3.2078]
[1739825733586,0.58374,2740.6,2740.2,3.2078]
[1739825733786,2.53979666,2740.5,2740.2,3.2078]
[1739825733986,2.475,2740.5,2740.2,3.2078]
[1739825741292,4.3491,2740.4,2740.2,3.2078]
[1739825743988,4.93288,2740.4,2740.1,0.00547435]
[1739825744197,6.12819,2740.3,2740.1,0.00547435]
[1739825744495,5.2408,2740.2,2740.1,0.00547435]
[1739825745890,5.82461,2740.2,2740.1,0.00547435]
[1739825746096,5.88941315,2740.2,2740.1,0.00547435]
[1739825748196,5.88941827,2740.2,2740.1,0.00547435]
[1739825750298,5.88941827,2740.2,2740.0,36.83908578]
[1739825750299,6.63883,2740.1,2740.0,36.83908578]
[1739825750502,16.71827675,2740.1,2740.0,29.83068578]
[1739825750694,22.71827675,2740.1,2740.0,22.82248578]
[1739825751291,22.71829359,2740.1,2740.0,16.83438578]
[1739825753500,16.71829359,2740.1,2740.0,16.83438578]
[1739825753802,22.71829359,2740.1,2740.0,16.83438578]
[1739825754398,22.65346848,2740.1,2740.0,16.83438578]
[1739825754607,22.71829057,2740.1,2740.0,16.83438578]
[1739825755197,12.94797133,2740.1,2740.0,16.83438578]
[1739825759303,18.94796888,2740.1,2740.0,16.83438578]
[1739825759803,16.71828812,2740.1,2740.0,16.83438578]
[1739825760000,22.71828812,2740.1,2740.0,15.39948578]
[1739825760808,22.65346848,2740.1,2740.0,15.39948578]
[1739825761002,22.718294,2740.1,2740.0,15.39948578]
[1739825762109,12.94797476,2740.1,2740.0,15.39948578]
[1739825764008,12.88314924,2740.1,2740.0,15.39948578]
[1739825764200,12.9479688,2740.1,2740.0,15.39948578]
[1739825765010,12.9479688,2740.1,2739.8,0.00547435]
[1739825765011,6.63888,2739.9,2739.8,0.00547435]
[1739825765198,9.91149956,2739.9,2739.8,0.00547435]
[1739825765407,15.91149956,2739.9,2739.8,0.00547435]
[1739825765707,15.91151204,2739.9,2739.8,0.00547435]
[1739825766110,0.58398,2739.4,2739.3,4.5275]
[1739825766305,0.58409,2738.9,2738.8,5.4749]
[1739825766611,6.89324128,2738.9,2738.8,5.4749]
[1739825767110,0.58413,2738.7,2738.6,4.5275]
[1739825767307,3.85676204,2738.7,2738.6,4.53297435]
[1739825768207,9.91176204,2738.7,2738.6,4.53297435]
[1739825768408,9.91176204,2738.7,2738.6,0.00547435]
[1739825768910,9.91178204,2738.7,2738.6,0.00547435]
[1739825769711,9.32765204,2738.7,2738.6,0.00547435]
[1739825770107,3.27265204,2738.7,2738.6,0.00547435]
[1739825770308,3.2078,2739.0,2738.6,0.00547435]
[1739825770619,2.474,2738.9,2738.6,0.00547435]
[1739825771108,3.2078,2739.0,2738.6,0.00547435]
[1739825771317,2.474,2738.9,2738.7,3.2078]
[1739825771517,2.474,2738.8,2738.7,3.2078]
[1739825771715,2.983,2740.7,2738.7,3.2078]
[1739825771916,0.0645592,2740.1,2739.5,3.2078]
[1739825772218,2.53855298,2740.0,2739.8,3.2078]
[1739825772408,2.474,2739.9,2739.8,3.2078]
[1739825772808,3.77031924,2740.6,2739.8,3.2078]
[1739825772809,2.474,2740.0,2739.8,3.2078]
[1739825773019,2.474,2740.1,2739.8,3.2078]
[1739825774418,0.00547435,2740.2,2739.8,3.2078]
[1739825774618,7.74159794,2740.9,2740.1,3.2078]
[1739825774822,0.58371,2740.7,2740.4,3.2078]
[1739825775020,0.06453328,2740.6,2740.4,3.2078]
[1739825775418,0.64827328,2740.6,2740.4,3.2078]
[1739825775718,0.06453328,2740.5,2740.4,3.2078]
[1739825775918,0.06453495,2740.5,2740.4,3.2078]
[1739825776120,3.77031924,2740.6,2740.4,3.2078]
[1739825776325,3.77031924,2740.6,2740.1,3.2078]
[1739825776326,0.58377,2740.4,2740.1,3.2078]
[1739825776526,2.53853495,2740.3,2740.1,3.2078]
[1739825776719,0.06453495,2740.2,2740.1,3.2078]
[1739825777023,0.06454407,2740.2,2740.0,5.6457]
[1739825777614,2.474,2740.3,2740.0,5.6457]
[1739825777817,0.06454384,2740.2,2740.1,4.3157]
[1739825779019,0.58386,2740.0,2739.8,3.2078]
[1739825779225,2.53754384,2739.9,2739.8,3.2078]
[1739825779625,2.473,2739.9,2739.8,3.2078]
[1739825782117,2.53754817,2739.9,2739.8,3.2078]
[1739825782523,2.473,2739.9,2739.8,3.2078]
[1739825783731,2.53754799,2739.9,2739.8,3.2078]
[1739825784123,2.53754799,2739.9,2739.6,0.00547435]
[1739825784325,4.35423924,2739.7,2739.6,0.00547435]
[1739825784530,4.41878723,2739.7,2739.6,0.00547435]
[1739825784733,9.08620685,2739.7,2739.6,0.00547435]
[1739825785027,15.08620685,2739.7,2739.6,0.00547435]
[1739825785232,18.29400685,2739.7,2739.6,0.00547435]
[1739825786230,24.35600685,2739.7,2739.6,0.00547435]
[1739825786622,18.29400685,2739.7,2739.6,0.00547435]
[1739825786822,12.29400685,2739.7,2739.6,0.00547435]
[1739825787624,9.08620685,2739.7,2739.6,0.00547435]
[1739825787931,3.83488685,2739.7,2739.6,0.00547435]
[1739825788129,4.41880685,2739.7,2739.6,0.00547435]
[1739825788429,4.41880251,2739.7,2739.6,0.00547435]
[1739825788826,3.83488251,2739.7,2739.6,0.00547435]
[1739825789027,2.53756327,2739.7,2739.6,0.00547435]
[1739825789731,6.89180251,2739.7,2739.6,0.00547435]
[1739825791426,6.82723924,2739.7,2739.6,0.00547435]
[1739825791632,6.89180148,2739.7,2739.6,0.00547435]
[1739825792135,6.30788148,2739.7,2739.6,0.00547435]
[1739825792329,3.12148224,2739.7,2739.6,0.00547435]
[1739825793031,2.53756224,2739.7,2739.6,0.00547435]
[1739825794735,0.06455919,2739.7,2739.6,0.00547435]
[1739825795034,2.53755919,2739.7,2739.6,0.00547435]
[1739825796231,2.53755582,2739.7,2739.6,0.00547435]
[1739825796738,3.12147582,2739.7,2739.6,0.00547435]
[1739825796937,6.89179506,2739.7,2739.6,0.00547435]
[1739825797135,6.30787506,2739.7,2739.6,0.00547435]
[1739825798434,6.82723924,2739.7,2739.6,0.00547435]
[1739825798632,6.89180027,2739.7,2739.6,0.00547435]
[1739825800437,2.53756103,2739.7,2739.6,0.00547435]
[1739825800741,3.12148103,2739.7,2739.6,0.00547435]
[1739825801437,6.89180027,2739.7,2739.6,0.00547435]
[1739825801738,6.89180427,2739.7,2739.6,0.00547435]
[1739825803344,12.95380427,2739.7,2739.6,0.00547435]
[1739825806833,0.58409,2738.9,2738.8,3.2078]
[1739825807040,2.53656503,2738.9,2738.8,3.2078]
[1739825807833,2.53656503,2738.9,2738.4,12.6118]
[1739825808043,2.472,2738.9,2738.6,0.00547435]
[1739825808352,0.06457931,2738.8,2738.6,0.00547435]
[1739825809440,2.53657931,2738.8,2738.7,3.2078]
[1739825809640,2.472,2738.8,2738.7,3.2078]
[1739825821346,3.05611,2738.8,2738.7,3.2078]
[1739825821551,12.22497772,2738.8,2738.6,0.00547435]
[1739825821747,9.78222696,2738.7,2738.6,0.00547435]
[1739825822347,5.42777772,2738.7,2738.6,0.00547435]
[1739825822549,5.42778076,2738.7,2738.6,0.00547435]
[1739825823854,6.01191076,2738.7,2738.6,0.00547435]
[1739825824156,6.01190998,2738.7,2738.6,0.00547435]
[1739825824452,9.78222922,2738.7,2738.6,0.00547435]
[1739825825045,9.19809922,2738.7,2738.6,0.00547435]
[1739825825749,9.19810102,2738.7,2738.6,0.00547435]
[1739825825948,5.42778178,2738.7,2738.6,0.00547435]
[1739825826148,5.42777919,2738.7,2738.6,0.00547435]
[1739825826345,11.48977919,2738.7,2738.6,0.00547435]
[1739825827155,13.96177919,2738.7,2738.6,0.00547435]
[1739825827357,14.54590919,2738.7,2738.6,0.00547435]
[1739825827555,13.96177919,2738.7,2738.6,0.00547435]
[1739825828554,14.54590919,2738.7,2738.6,0.00547435]
[1739825828755,13.96177919,2738.7,2738.6,0.00547435]
[1739825830255,14.54590919,2738.7,2738.6,0.00547435]
[1739825830755,14.54591164,2738.7,2738.6,0.00547435]
[1739825832357,0.06458164,2738.7,2738.6,0.00547435]
[1739825832653,2.472,2738.7,2738.6,0.00547435]
[1739825836161,0.18189554,2738.9,2738.6,0.00547435]
[1739825836361,2.53657622,2738.8,2738.7,3.2078]
[1739825837259,2.53657794,2738.8,2738.7,3.2078]
[1739825837661,2.472,2738.8,2738.7,3.2078]
[1739825839864,2.53657571,2738.8,2738.7,3.2078]
[1739825840462,2.472,2738.8,2738.7,3.2078]
[1739825842159,2.53657535,2738.8,2738.7,3.2078]
[1739825842558,2.472,2738.8,2738.7,3.2078]
[1739825853275,2.471,2738.8,2738.7,3.2078]
[1739825856477,8.533,2738.8,2738.6,0.00547435]
[1739825856684,2.471,2738.8,2738.7,3.2078]
[1739825859373,2.53557659,2738.8,2738.7,3.2078]
[1739825859980,2.471,2738.8,2738.7,3.2078]
[1739825860373,2.53557447,2738.8,2738.7,3.2078]
[1739825860683,2.471,2738.8,2738.7,3.2078]
[1739825861282,2.53557429,2738.8,2738.7,3.2078]
[1739825861469,2.471,2738.8,2738.7,3.2078]
[1739825861672,2.53557459,2738.8,2738.7,3.2078]
[1739825863078,2.5355747,2738.8,2738.7,3.2078]
[1739825863778,2.471,2738.8,2738.7,3.2078]
[1739825863984,2.53557531,2738.8,2738.7,3.2078]
[1739825864177,2.53557645,2738.8,2738.7,3.2078]
[1739825864377,2.471,2738.8,2738.7,3.2078]
[1739825864583,2.5355747,2738.8,2738.7,3.2078]
[1739825864779,2.53557483,2738.8,2738.7,3.2078]
[1739825864978,2.471,2738.8,2738.7,3.2078]
[1739825865185,2.53557626,2738.8,2738.7,3.2078]
[1739825865386,2.471,2738.8,2738.7,3.2078]
[1739825866579,8.533,2738.8,2738.7,3.2078]
[1739825866787,2.471,2738.8,2738.7,3.2078]
[1739825867784,2.53557445,2738.8,2738.7,3.2078]
[1739825869079,2.53557564,2738.8,2738.7,3.2078]
[1739825870183,2.53557598,2738.8,2738.7,3.2078]
[1739825871981,6.64613,2738.7,2738.6,0.00547435]
[1739825872278,0.58425,2738.2,2738.0,3.2078]
[1739825872485,12.2651,2738.1,2738.0,3.2078]
[1739825872885,12.84936,2738.1,2738.0,3.2078]
[1739825873093,18.91136,2738.1,2738.0,3.2078]
[1739825875383,12.2651,2738.1,2738.0,3.2078]
[1739825877090,12.84936,2738.1,2738.0,3.2078]
[1739825879187,0.5843,2737.9,2737.8,0.00547435]
[1739825879384,13.62441924,2737.9,2737.8,0.00547435]
[1739825879581,13.68902631,2737.9,2737.8,0.00547435]
[1739825880291,13.62441924,2737.9,2737.8,0.00547435]
[1739825880588,4.41922511,2737.9,2737.8,0.00547435]
[1739825880784,2.469,2737.9,2737.8,0.00547435]
[1739825881285,12.3231,2737.9,2737.8,0.00547435]
[1739825881586,12.38770788,2737.9,2737.8,0.00547435]
[1739825882289,12.3231,2737.9,2737.8,0.00547435]
[1739825882484,12.3877052,2737.9,2737.8,0.00547435]
[1739825882686,9.1799052,2737.9,2737.8,0.00547435]
[1739825883691,12.3877052,2737.9,2737.8,0.00547435]
[1739825883892,12.38770882,2737.9,2737.8,0.00547435]
[1739825887092,12.38770843,2737.9,2737.8,0.00547435]
[1739825887483,9.17990843,2737.9,2737.8,0.00547435]
[1739825888689,9.17990794,2737.9,2737.8,0.00547435]
[1739825891988,9.1799068,2737.9,2737.8,0.00547435]
[1739825892998,16.15802604,2737.9,2737.8,0.00547435]
[1739825893198,15.57372604,2737.9,2737.3,4.6448]
[1739825893499,3.77031924,2737.4,2737.3,4.6448]
[1739825893698,6.23931924,2737.4,2737.3,4.6448]
[1739825900401,6.42192557,2737.4,2737.3,4.6448]
[1739825904308,7.00633557,2737.4,2737.3,4.6448]
[1739825904702,4.9285591,2737.4,2737.3,4.6448]
[1739825906198,4.3441491,2737.4,2737.3,4.6448]
[1739825907301,4.9285591,2737.4,2737.3,4.6448]
[1739825907811,4.3441491,2737.4,2737.3,4.6448]
[1739825909800,4.9285591,2737.4,2737.3,4.6448]
[1739825910000,4.3441491,2737.4,2737.3,4.6448]
[1739825911002,4.9285591,2737.4,2737.3,4.6448]
[1739825911710,12.09869187,2737.4,2736.9,3.2078]
[1739825911900,12.09869187,2737.4,2736.3,13.0325]
[1739825911901,1.69254277,2736.9,2736.3,13.0325]
[1739825912204,1.69254277,2736.4,2736.3,13.0325]
[1739825912401,4.16054277,2736.4,2736.3,13.0325]
[1739825912801,4.16054277,2736.4,2736.3,4.2546]
[1739825914708,3.78443537,2736.4,2736.3,4.2546]
[1739825914906,2.468,2736.4,2736.3,4.2546]
[1739825917104,3.05263,2736.4,2736.1,3.21327435]
[1739825917310,3.78443537,2736.2,2736.1,3.21327435]
[1739825919406,3.78443537,2736.5,2736.1,3.21327435]
[1739825919611,2.468,2736.4,2736.1,3.21327435]
[1739825921108,2.468,2736.3,2736.1,0.00547435]
[1739825923005,4.36905537,2736.5,2736.1,0.00547435]
[1739825923313,2.468,2736.4,2736.1,0.00547435]
[1739825923513,6.11315,2736.3,2736.1,0.00547435]
[1739825923814,5.5285,2736.3,2736.1,0.00547435]
[1739825924011,2.468,2736.4,2736.1,0.00547435]
[1739825924408,3.05264,2736.4,2736.1,0.00547435]
[1739825924807,2.468,2736.4,2736.1,0.00547435]
[1739825925009,3.05262,2736.4,2736.1,0.00547435]
[1739825925813,2.468,2736.4,2736.1,0.00547435]
[1739825928208,2.468,2736.3,2736.1,0.00547435]
[1739825928611,9.9368,2736.6,2736.1,3.21327435]
[1739825928818,14.8725,2736.7,2736.1,3.21327435]
[1739825929013,2.468,2736.6,2736.1,3.21327435]
[1739825929320,3.78443537,2736.5,2736.1,3.21327435]
[1739825930722,4.36903537,2736.5,2736.1,3.21327435]
[1739825930924,3.78443537,2736.5,2736.1,3.21327435]
[1739825931821,4.36904537,2736.5,2736.1,3.21327435]
[1739825932715,9.58284537,2736.5,2736.1,3.21327435]
[1739825934223,2.468,2736.4,2736.1,3.21327435]
[1739825936130,3.05262,2736.4,2736.1,3.21327435]
[1739825936729,2.468,2736.4,2736.1,3.21327435]
[1739825937424,3.78443537,2736.2,2736.1,0.00547435]
[1739825937617,4.36910537,2736.2,2736.1,0.00547435]
[1739825938129,13.70393537,2736.2,2736.1,0.00547435]
[1739825938829,9.9195,2736.2,2736.1,0.00547435]
[1739825943630,5.379,2736.2,2736.1,0.00547435]
[1739825943824,2.468,2736.4,2736.1,0.00547435]
[1739825944333,2.468,2736.4,2736.1,5.57687435]
[1739825947830,7.019,2736.4,2736.1,5.57687435]
[1739825953635,7.019,2736.4,2736.1,0.00547435]
[1739825953837,5.6638,2736.3,2736.1,0.00547435]
[1739825955938,7.019,2736.4,2736.1,0.00547435]
[1739825956242,13.27882,2736.4,2736.1,0.00547435]
[1739825956654,1.69354395,2736.3,2736.1,0.00547435]
[1739825957639,2.27819395,2736.3,2736.1,0.00547435]
[1739825957842,1.69354395,2736.3,2736.1,0.00547435]
[1739825958544,2.27819395,2736.3,2736.1,0.00547435]
[1739825959145,1.69354395,2736.3,2736.1,0.00547435]
[1739825960848,1.69354395,2736.3,2736.2,0.00156235]
[1739825961443,2.27818395,2736.3,2736.2,0.00156235]
[1739825961646,1.69354395,2736.3,2736.2,0.00156235]
[1739825970050,3.9717279,2736.3,2736.2,0.00156235]
[1739825970253,3.9717279,2736.3,2736.1,0.00547435]
[1739825970254,0.58467,2736.2,2736.1,0.00547435]
[1739825970653,0.58472,2736.0,2735.6,2.918]
[1739825970956,1.69354395,2735.7,2735.6,2.918]
[1739825971355,1.69354395,2735.7,2735.4,4.3361]
[1739825971556,1.69354395,2735.5,2735.3,3.2078]
[1739825971758,4.15854395,2735.5,2735.3,7.6572]
[1739825971954,4.15854395,2735.5,2735.4,0.45619145]
[1739825972352,4.74336395,2735.5,2735.4,0.45619145]
[1739825972650,9.46010877,2735.5,2734.7,9.965]
[1739825972851,10.04493877,2735.5,2734.7,9.965]
[1739825973247,10.04493877,2735.5,2734.8,0.45626449]
[1739825973448,5.5826,2735.4,2734.8,0.45626449]
[1739825973955,5.4242,2735.3,2734.9,0.45626449]
[1739825974150,5.4242,2735.3,2734.7,9.965]
[1739825974652,5.4242,2735.3,2734.8,0.45564365]
[1739825975055,5.4242,2735.3,2734.9,0.45564365]
[1739825975451,5.4242,2735.3,2734.7,9.965]
[1739825976460,6.00906,2735.3,2734.7,9.965]
[1739825977360,0.58488,2735.2,2734.7,9.965]
[1739825977562,2.465,2735.1,2734.7,9.965]
[1739825977757,6.25230877,2735.1,2734.7,9.965]
[1739825977964,0.58492,2735.0,2734.7,9.965]
[1739825978164,5.2645,2734.9,2734.7,9.965]
[1739825981266,3.78730877,2734.8,2734.7,4.4494]
[1739825981463,9.41600877,2734.8,2734.7,4.4494]
[1739825981664,9.41600877,2734.8,2734.6,3.2078]
[1739825981966,0.58504,2734.5,2734.2,3.2078]
[1739825982168,3.78730877,2734.3,2734.2,3.2078]
[1739825982471,6.25230877,2734.3,2734.2,3.2078]
[1739825982668,11.88100877,2734.3,2734.2,3.2078]
[1739825983076,2.465,2734.3,2734.2,3.2078]
[1739825985567,5.5334,2734.7,2734.2,3.2078]
[1739825985771,3.78730877,2735.2,2734.5,3.2078]
[1739825985976,2.465,2735.1,2734.8,3.2078]
[1739825986367,2.465,2735.0,2734.8,3.2078]
[1739825987272,3.78730877,2734.9,2734.8,3.2078]
[1739825988477,8.34560877,2734.9,2734.8,3.2078]
[1739825989367,8.34560877,2734.9,2734.3,5.3119]
[1739825989566,3.78730877,2734.4,2734.2,6.1258]
[1739825989776,10.9452,2734.3,2734.2,3.2078]
[1739825990677,15.2095,2734.3,2734.2,3.2078]
[1739825991575,5.6494,2734.3,2734.2,3.2078]
[1739825991775,6.7293,2734.5,2734.2,3.2078]
[1739825991979,12.1628,2734.5,2734.2,3.2078]
[1739825992477,9.6978,2734.5,2734.2,3.2078]
[1739825992777,2.465,2734.4,2734.2,3.2078]
[1739825994384,5.439,2734.3,2734.2,3.2078]
[1739825995375,13.01918877,2734.3,2733.7,3.2078]
[1739825995576,12.43410877,2734.3,2733.7,3.2078]
[1739825995782,12.43959323,2734.3,2733.8,5.6382]
[1739825996987,13.02467323,2734.3,2733.8,5.6382]
[1739825997983,12.43959323,2734.3,2733.8,5.6382]
[1739825998177,13.02466323,2734.3,2733.8,5.6382]
[1739825998782,12.43959323,2734.3,2733.8,5.6382]
[1739825998982,13.02467323,2734.3,2733.8,5.6382]
[1739825999280,13.02468323,2734.3,2733.7,3.2078]
[1739825999777,12.43959323,2734.3,2733.7,3.2078]
[1739825999983,13.02466323,2734.3,2733.7,3.2078]
[1739826000286,12.43959323,2734.3,2733.7,3.2078]
[1739826000584,9.23179323,2734.3,2733.7,3.2078]
[1739826001282,3.78730877,2734.0,2733.7,3.2078]
[1739826001480,11.9696,2733.9,2733.4,3.2078]
[1739826001788,5.2592,2733.8,2733.4,3.2078]
[1739826003902,7.6316,2733.9,2733.7,3.2078]
[1739826004204,2.465,2733.9,2733.8,5.5051]
[1739826004406,2.465,2733.9,2733.8,10.1401]
[1739826004601,15.1303,2734.2,2733.8,10.1401]
[1739826004804,2.465,2734.1,2734.0,3.2078]
[1739826005304,6.25230877,2734.1,2733.8,4.635]
[1739826005901,15.52210877,2734.1,2733.6,3.2078]
[1739826006204,3.78730877,2733.7,2732.9,3.2078]
[1739826006508,3.78730877,2733.4,2733.0,4.5094]
[1739826007402,17.3996,2733.6,2733.2,3.2078]
[1739826007599,2.465,2733.5,2733.2,3.2078]
[1739826007904,2.465,2733.4,2733.3,5.2212]
[1739826008211,13.85560877,2734.0,2733.3,5.2212]
[1739826008508,10.8282,2734.0,2733.8,3.2078]
[1739826008703,5.222,2734.0,2733.9,4.4575]
[1739826009009,2.465,2734.0,2733.9,9.6787]
[1739826009707,0.00548446,2734.3,2733.9,9.6787]
[1739826009910,2.465,2734.2,2733.9,9.6787]
[1739826010107,2.465,2734.2,2734.1,3.2078]
[1739826010336,0.00548446,2734.3,2734.1,3.2078]
[1739826010519,2.47048446,2734.3,2734.1,3.2078]
[1739826010740,0.00548446,2734.3,2734.2,5.3729]
[1739826011236,0.00548446,2734.3,2734.1,3.2078]
[1739826012729,10.72158446,2734.3,2734.1,3.2078]
[1739826013835,0.00548446,2734.3,2734.1,3.2078]
[1739826014518,5.65158446,2734.3,2733.8,3.2078]
[1739826014815,5.6347,2734.2,2733.8,3.2078]
[1739826016015,5.6347,2734.2,2733.9,9.8761]
[1739826017314,0.00548446,2734.3,2733.9,9.8761]
[1739826018011,0.00548446,2734.3,2734.1,3.2078]
[1739826020411,2.464,2734.2,2734.1,3.2078]
[1739826023817,0.00548446,2734.3,2734.1,3.2078]
[1739826029624,2.46848446,2734.3,2734.1,3.2078]
[1739826029914,0.00548446,2734.3,2734.1,3.2078]
[1739826032812,0.00548446,2734.3,2734.2,0.45404779]
[1739826033422,0.00548446,2734.3,2734.1,3.2078]
[1739826037031,0.00548446,2734.3,2734.2,0.45433262]
[1739826037827,0.00548446,2734.3,2734.2,0.74687485]
[1739826038022,0.00548446,2734.3,2734.2,0.29254223]
[1739826038216,0.00548446,2734.3,2734.2,0.45473962]
[1739826038824,0.58491,2735.1,2734.4,0.58505]
[1739826039023,5.5649,2735.0,2734.7,3.2078]
[1739826039325,8.0279,2735.0,2734.7,3.2078]
[1739826039720,0.58495,2734.9,2734.7,3.2078]
[1739826040023,0.00548446,2735.1,2734.7,3.2078]
[1739826040221,2.46848446,2735.1,2735.0,3.2078]
[1739826040925,0.00548446,2735.1,2735.0,3.66235148]
[1739826042228,7.9075,2735.6,2735.0,7.44966025]
[1739826042429,2.462,2735.6,2735.5,3.2078]
[1739826042823,3.2078,2737.0,2735.5,9.2078]
[1739826043028,5.1641,2736.4,2736.1,3.2078]
[1739826043424,2.462,2736.7,2736.2,4.376]
[1739826043730,2.462,2736.7,2736.0,0.00548446]
[1739826043731,3.78730877,2736.4,2736.0,0.00548446]
[1739826043926,0.58468,2736.2,2736.0,0.00548446]
[1739826044524,17.5387,2736.3,2736.0,0.00548446]
[1739826044724,18.12335,2736.3,2736.0,0.00548446]
[1739826045030,13.05710877,2736.1,2735.0,3.2078]
[1739826045225,3.78730877,2735.4,2735.0,3.2078]
[1739826045533,9.8359,2735.3,2735.0,3.2078]
[1739826045923,5.3917,2735.3,2735.0,3.2078]
[1739826046127,3.2078,2736.0,2735.2,3.78730877]
[1739826046323,3.2078,2736.0,2735.4,3.2078]
[1739826046530,4.37205877,2735.9,2735.4,3.2078]
[1739826046723,3.78730877,2735.9,2735.4,3.2078]
[1739826048128,5.1724,2735.8,2735.4,7.5607]
[1739826048329,8.0764,2735.7,2735.4,7.5607]
[1739826048531,12.497,2735.7,2735.4,7.5607]
[1739826048927,8.0764,2735.7,2735.4,7.5607]
[1739826050533,8.0764,2735.7,2735.4,3.2078]
[1739826050731,8.07320877,2735.6,2735.1,3.2078]
[1739826050932,0.58486,2735.3,2735.1,3.2078]
[1739826051229,10.9418,2735.2,2735.1,3.2078]
[1739826051943,15.2277,2735.2,2735.1,3.2078]
[1739826052633,19.01500877,2735.2,2734.9,0.00548446]
[1739826052836,19.01500877,2735.2,2734.3,2.918]
[1739826053032,19.01500877,2735.2,2734.2,3.2078]
[1739826053033,3.78730877,2734.8,2734.2,3.2078]
[1739826053230,17.8614,2734.7,2734.2,3.2078]
[1739826053739,2.461,2734.7,2734.5,3.2078]
[1739826053939,15.4424,2734.6,2734.5,3.2078]
[1739826054335,0.00548446,2734.9,2734.5,3.2078]
[1739826054545,0.00548446,2734.9,2734.3,9.00950877]
[1739826054546,2.46648446,2734.9,2734.8,3.2078]
[1739826055437,0.00548446,2734.9,2734.8,3.2078]
[1739826056932,9.6991,2735.4,2734.8,12.1258]
[1739826057143,9.6991,2735.4,2735.1,3.2078]
[1739826057346,9.6991,2735.4,2735.2,4.3541]
[1739826059846,10.28395,2735.4,2735.2,4.3541]
[1739826060045,0.58488,2735.2,2735.1,3.2078]
[1739826060251,0.5849,2735.1,2735.0,0.00548446]
[1739826060444,0.58494,2734.9,2734.2,7.5144]
[1739826060742,2.461,2734.8,2734.2,7.5144]
[1739826061249,2.461,2734.8,2734.6,3.2078]
[1739826061842,2.461,2734.8,2734.3,0.45294613]
[1739826062046,2.461,2734.8,2734.2,7.5144]
[1739826062440,2.461,2734.8,2734.4,3.78730877]
[1739826062753,4.4128,2735.0,2734.2,7.5144]
[1739826063045,7.00059323,2735.6,2734.7,3.78730877]